fUSD/lending_fUSD_20250410
["ID","MTS","AMOUNT","RATE_DAILY","PERIOD"]
[357681193,1744318252367,-500.0,0.00027397,2]
[357681194,1744318252376,-500.0,0.00027397,2]
[357681195,1744318252386,-172.05439151,0.00027397,2]
[357681196,1744318252396,-151.0,0.00027397,7]
[357681197,1744318252405,-545.87,0.00027397,2]
[357681198,1744318252414,-500.0,0.00027397,2]
[357681199,1744318252424,-565.02744473,0.00027397,2]
[357681200,1744318252433,-1939.39,0.00027397,2]
[357681201,1744318252443,-500.0,0.00027397,2]
[357681202,1744318252452,-1145.27,0.00027397,2]
[357681203,1744318252461,-513.32978877,0.00027397,2]
[357681204,1744318252470,-511.6302931,0.00027397,2]
[357681205,1744318252479,-500.0,0.00027397,2]
[357681206,1744318252488,-500.0,0.00027397,2]
[357681207,1744318252497,-500.0,0.00027397,2]
[357681208,1744318252506,-519.20271053,0.00027397,2]
[357681209,1744318252515,-500.0,0.00027397,2]
[357681210,1744318252524,-500.0,0.00027397,2]
[357681211,1744318252533,-703.56,0.00027397,2]
[357681212,1744318252543,-500.0,0.00027397,2]
[357681213,1744318252552,-196.1034845,0.00027397,2]
[357681214,1744318252561,-500.0,0.00027397,2]
[357681215,1744318252570,-500.0,0.00027397,2]
[357681216,1744318252579,-500.0,0.00027397,2]
[357681217,1744318252589,-500.0,0.00027397,2]
[357681218,1744318252598,-500.0,0.00027397,2]
[357681219,1744318252607,-500.0,0.00027397,2]
[357681220,1744318252616,-763.43,0.00027397,2]
[357681221,1744318252625,-157.897461,0.00027397,7]
[357681222,1744318252634,-854.68,0.00027397,2]
[357681223,1744318252643,-500.0,0.00027397,2]
[357681224,1744318252653,-500.0,0.00027397,2]
[357681225,1744318252662,-500.0,0.00027397,2]
[357681226,1744318252671,-500.0,0.00027397,2]
[357681227,1744318252681,-500.0,0.00027397,2]
[357681228,1744318252690,-512.66422861,0.00027397,2]
[357681229,1744318252699,-3443.6,0.00027397,2]
[357681230,1744318252708,-543.48,0.00027397,2]
[357681231,1744318252718,-500.0,0.00027397,2]
[357681232,1744318252728,-500.0,0.00027397,2]
[357681233,1744318252737,-157.897461,0.00027397,7]
[357681234,1744318252747,-514.29067209,0.00027397,2]
[357681235,1744318252757,-500.0,0.00027397,2]
[357681236,1744318252766,-500.0,0.00027397,2]
[357681237,1744318252775,-503.42595301,0.00027397,2]
[357681238,1744318252784,-1578.9,0.00027397,2]
[357681239,1744318252794,-500.0,0.00027397,2]
[357681240,1744318252804,-500.0,0.00027397,2]
[357681241,1744318252813,-1911.48,0.00027397,2]
[357681242,1744318252823,-500.0,0.00027397,2]
[357681243,1744318252832,-500.0,0.00027397,2]
[357681244,1744318252841,-500.0,0.00027397,2]
[357681245,1744318252850,-747.72,0.00027397,2]
[357681246,1744318252859,-489.43346919,0.00027397,2]
[357681247,1744318252869,-500.0,0.00027397,2]
[357681248,1744318252878,-500.0,0.00027397,2]
[357681249,1744318252887,-500.0,0.00027397,2]
[357681250,1744318252896,-500.0,0.00027397,2]
[357681251,1744318252905,-500.0,0.00027397,2]
[357681252,1744318252915,-603.44,0.00027397,2]
[357681253,1744318252925,-500.0,0.00027397,2]
[357681254,1744318252934,-1713.33,0.00027397,2]
[357681255,1744318252943,-500.0,0.00027397,2]
[357681256,1744318252952,-500.0,0.00027397,2]
[357681257,1744318252962,-500.0,0.00027397,2]
[357681258,1744318252971,-500.0,0.00027397,2]
[357681259,1744318252979,-500.0,0.00027397,2]
[357681260,1744318252989,-500.0,0.00027397,2]
[357681261,1744318252998,-509.98651193,0.00027397,2]
[357681262,1744318253008,-500.0,0.00027397,2]
[357681263,1744318253020,-500.0,0.00027397,2]
[357681264,1744318253029,-500.0,0.00027397,2]
[357681265,1744318253038,-907.66,0.00027397,2]
[357681266,1744318253048,-542.89,0.00027397,2]
[357681267,1744318253058,-500.0,0.00027397,2]
[357681268,1744318253067,-2288.34,0.00027397,2]
[357681269,1744318253076,-505.5208243,0.00027397,2]
[357681270,1744318253085,-170.444186,0.00027397,7]
[357681271,1744318253095,-2595.65,0.00027397,2]
[357681272,1744318253105,-500.0,0.00027397,2]
[357681273,1744318253114,-500.0,0.00027397,2]
[357681274,1744318253123,-170.444186,0.00027397,7]
[357681275,1744318253132,-500.0,0.00027397,2]
[357681276,1744318253141,-1496.14,0.00027397,2]
[357681277,1744318253151,-500.0,0.00027397,2]
[357681278,1744318253160,-500.0,0.00027397,2]
[357681279,1744318253170,-500.0,0.00027397,2]
[357681280,1744318253180,-507.66080046,0.00027397,2]
[357681281,1744318253189,-500.0,0.00027397,2]
[357681282,1744318253199,-500.0,0.00027397,2]
[357681283,1744318253208,-1118.42,0.00027397,2]
[357681284,1744318253220,-848.26,0.00027397,2]
[357681285,1744318253230,-500.0,0.00027397,2]
[357681286,1744318253239,-500.0,0.00027397,2]
[357681287,1744318253249,-500.0,0.00027397,2]
[357681288,1744318253258,-500.0,0.00027397,2]
[357681289,1744318253268,-611.05,0.00027397,2]
[357681290,1744318253277,-266.39536749,0.00027397,2]
[357681291,1744318253287,-586.91283386,0.00027397,2]
[357681292,1744318253296,-500.0,0.00027397,2]
[357681293,1744318253305,-507.15207566,0.00027397,2]
[357681294,1744318253315,-500.0,0.00027397,2]
[357681295,1744318253324,-500.0,0.00027397,2]
[357681296,1744318253333,-930.23,0.00027397,2]
[357681297,1744318253342,-538.43061171,0.00027397,2]
[357681298,1744318253351,-1326.22,0.00027397,2]
[357681299,1744318253361,-500.0,0.00027397,2]
[357681300,1744318253370,-151.0,0.00027397,7]
[357681301,1744318253379,-581.51,0.00027397,2]
[357681302,1744318253389,-500.0,0.00027397,2]
[357681303,1744318253399,-990.27,0.00027397,2]
[357681304,1744318253409,-500.0,0.00027397,2]
[357681305,1744318253418,-196.07644626,0.00027397,2]
[357681306,1744318253427,-500.0,0.00027397,2]
[357681307,1744318253436,-1371.01,0.00027397,2]
[357681308,1744318253445,-500.0,0.00027397,2]
[357681309,1744318253454,-508.77705244,0.00027397,2]
[357681310,1744318253463,-500.0,0.00027397,2]
[357681311,1744318253472,-151.0,0.00027397,7]
[357681312,1744318253480,-500.0,0.00027397,2]
[357681313,1744318253489,-500.0,0.00027397,2]
[357681314,1744318253498,-500.0,0.00027397,2]
[357681315,1744318253507,-500.0,0.00027397,2]
[357681316,1744318253516,-1521.42,0.00027397,2]
[357681317,1744318253525,-722.86,0.00027397,2]
[357681318,1744318253534,-500.0,0.00027397,2]
[357681319,1744318253543,-500.0,0.00027397,2]
[357681320,1744318253553,-500.0,0.00027397,2]
[357681321,1744318253562,-500.0,0.00027397,2]
[357681322,1744318253571,-500.0,0.00027397,2]
[357681323,1744318253580,-619.63,0.00027397,2]
[357681324,1744318253589,-500.0,0.00027397,2]
[357681325,1744318253598,-500.0,0.00027397,2]
[357681326,1744318253607,-500.0,0.00027397,2]
[357681327,1744318253616,-504.0901111,0.00027397,2]
[357681328,1744318253625,-510.82160321,0.00027397,2]
[357681329,1744318253634,-620.33,0.00027397,2]
[357681330,1744318253643,-500.0,0.00027397,2]
[357681331,1744318253652,-500.0,0.00027397,2]
[357681332,1744318253661,-500.0,0.00027397,2]
[357681333,1744318253670,-500.0,0.00027397,2]
[357681334,1744318253679,-500.0,0.00027397,2]
[357681335,1744318253688,-1423.73,0.00027397,2]
[357681336,1744318253697,-505.27,0.00027397,2]
[357681337,1744318253705,-500.0,0.00027397,2]
[357681338,1744318253714,-505.06725915,0.00027397,2]
[357681339,1744318253723,-500.0,0.00027397,2]
[357681340,1744318253732,-1170.86,0.00027397,2]
[357681341,1744318253741,-500.0,0.00027397,2]
[357681342,1744318253751,-500.0,0.00027397,2]
[357681343,1744318253759,-500.0,0.00027397,2]
[357681344,1744318253768,-500.0,0.00027397,2]
[357681345,1744318253778,-500.0,0.00027397,2]
[357681346,1744318253787,-519.84,0.00027397,2]
[357681347,1744318253796,-500.0,0.00027397,2]
[357681348,1744318253806,-500.0,0.00027397,2]
[357681349,1744318253815,-1105.15,0.00027397,2]
[357681350,1744318253824,-571.78,0.00027397,2]
[357681351,1744318253834,-743.73,0.00027397,2]
[357681352,1744318253843,-500.0,0.00027397,2]
[357681353,1744318253852,-540.9004331,0.00027397,2]
[357681354,1744318253861,-500.0,0.00027397,2]
[357681355,1744318253870,-500.0,0.00027397,2]
[357681356,1744318253880,-500.0,0.00027397,2]
[357681357,1744318253889,-640.04,0.00027397,2]
[357681358,1744318253898,-1529.41,0.00027397,2]
[357681359,1744318253908,-511.52060316,0.00027397,2]
[357681360,1744318254479,-66.73605877,0.00027397,2]
[357681361,1744318255051,862.0,0.0002,2]
[357681362,1744318257058,2500.0,0.000199,2]
[357681363,1744318265454,224.8,0.00019417,2]
[357681364,1744318308088,499.00050399,0.00043684,120]
[357681371,1744318385308,1000.0,0.00019417,2]
[357681372,1744318411002,407.022116,0.00031436,120]
[357681375,1744318501766,1067.0,0.00043684,30]
[357681380,1744318712995,23900.0,0.00019417,2]
[357681384,1744318808253,1067.0,0.00043659,30]
[357681396,1744318963374,206.3,0.00043659,30]
[357681404,1744319240149,-225.69,0.00020787,2]
[357681405,1744319240171,-1000.0,0.00021844,2]
[357681406,1744319240191,-283.21,0.00021917,2]
[357681407,1744319240213,-250.0,0.00022865,2]
[357681408,1744319240234,-193.0,0.00023073,2]
[357681409,1744319240255,-302.22,0.00023074,2]
[357681410,1744319240275,-301.19,0.00023074,2]
[357681411,1744319240296,-303.42,0.00023074,2]
[357681412,1744319240317,-300.23,0.00023074,2]
[357681413,1744319240339,-147.07945805,0.00023074,2]
[357681414,1744319246137,-157.55054195,0.00023074,2]
[357681415,1744319246158,-300.58,0.00023074,2]
[357681416,1744319246179,-300.9,0.00023074,2]
[357681417,1744319246199,-300.72,0.00023074,2]
[357681418,1744319246221,-303.03,0.00023074,2]
[357681419,1744319246242,-305.92,0.00023074,2]
[357681420,1744319246263,-302.29,0.00023074,2]
[357681421,1744319246285,-305.1,0.00023074,2]
[357681422,1744319246306,-302.02,0.00023074,2]
[357681423,1744319246331,-303.17,0.00023074,2]
[357681424,1744319246352,-301.02,0.00023074,2]
[357681425,1744319246375,-303.21,0.00023074,2]
[357681426,1744319246395,-302.59,0.00023074,2]
[357681427,1744319246416,-300.19,0.00023074,2]
[357681428,1744319246437,-300.31,0.00023074,2]
[357681429,1744319246457,-305.12,0.00023074,2]
[357681430,1744319246478,-300.95,0.00023074,2]
[357681431,1744319246498,-301.32,0.00023074,2]
[357681432,1744319246518,-303.44,0.00023074,2]
[357681433,1744319246538,-305.89,0.00023074,2]
[357681434,1744319246558,-303.36,0.00023074,2]
[357681435,1744319246578,-303.05,0.00023074,2]
[357681436,1744319246599,-300.51,0.00023074,2]
[357681437,1744319246620,-301.51,0.00023074,2]
[357681438,1744319246641,-305.9,0.00023074,2]
[357681439,1744319246661,-303.62,0.00023074,2]
[357681440,1744319246682,-305.54,0.00023074,2]
[357681441,1744319246704,-302.39,0.00023074,2]
[357681442,1744319246725,-305.68,0.00023074,2]
[357681443,1744319246746,-304.42,0.00023074,2]
[357681444,1744319246767,-303.49,0.00023074,2]
[357681445,1744319246789,-302.86,0.00023074,2]
[357681446,1744319246810,-302.43,0.00023074,2]
[357681447,1744319246831,-302.03,0.00023074,2]
[357681448,1744319246852,-305.59,0.00023074,2]
[357681449,1744319246872,-303.87,0.00023074,2]
[357681450,1744319246892,-301.83,0.00023074,2]
[357681451,1744319246912,-303.01,0.00023074,2]
[357681452,1744319246932,-301.04,0.00023844,2]
[357681453,1744319246952,-301.11,0.00023844,2]
[357681454,1744319246973,-301.16,0.00023844,2]
[357681455,1744319246993,-305.23,0.00023844,2]
[357681456,1744319247014,-304.36,0.00023844,2]
[357681457,1744319247035,-302.14,0.00023844,2]
[357681458,1744319247055,-167.55929716,0.00023844,2]
[357681470,1744319432192,-132.66070284,0.00023844,2]
[357681471,1744319432202,-250.0,0.00024058,2]
[357681472,1744319432211,-117.33929716,0.00024246,2]
[357681473,1744319432354,-357.81913712,0.00024246,2]
[357681474,1744319432365,-1336.31236293,0.00024246,2]
[357681521,1744319438145,-2148.52920279,0.00024246,2]
[357681522,1744319438155,-151.0,0.00024246,2]
[357681523,1744319438165,-852.0,0.00024246,2]
[357681524,1744319438174,-1121.0,0.00024246,2]
[357681525,1744319438183,-4880.02863779,0.00024427,2]
[357681526,1744319438192,-150.0,0.00024621,2]
[357681527,1744319438201,-150.0,0.00024621,2]
[357681528,1744319438210,-672.75137276,0.00025261,3]
[357681529,1744319438219,-300.0,0.0002536,2]
[357681530,1744319438228,-150.23,0.00025361,2]
[357681531,1744319438238,-241.931,0.00025361,2]
[357681532,1744319438247,-250.0,0.00025361,2]
[357681533,1744319438256,-181.778,0.00025361,2]
[357681534,1744319438266,-172.053,0.00025361,2]
[357681535,1744319438275,-257.06,0.00025361,2]
[357681536,1744319438285,-575.0,0.00025361,2]
[357681537,1744319438294,-2045.0,0.00025361,2]
[357681538,1744319438303,-1286.0,0.00025361,2]
[357681539,1744319438312,-1326.0,0.00025361,2]
[357681540,1744319438322,-791.0,0.00025361,2]
[357681541,1744319438331,-907.0,0.00025361,2]
[357681542,1744319438340,-1437.0,0.00025361,2]
[357681543,1744319438349,-1278.0,0.00025361,2]
[357681544,1744319438358,-2825.60511063,0.00025361,2]
[357681555,1744319440638,-311.470895,0.00025361,2]
[357681566,1744319446180,-800.11573862,0.00025361,2]
[357681568,1744319446391,-206.80825575,0.00025361,2]
[357681569,1744319446401,-160.53007096,0.00025361,2]
[357681570,1744319446505,-383.46992904,0.00025361,2]
[357681571,1744319446515,-150.0,0.00025361,2]
[357681572,1744319446524,-150.0,0.00025361,2]
[357681573,1744319446533,-231.56557952,0.00025361,2]
[357681574,1744319446542,-191.42,0.00025607,2]
[357681575,1744319446552,-166.26,0.00025841,2]
[357681576,1744319446561,-917.97318828,0.0002592,2]
[357681577,1744319446583,-82.02681172,0.0002592,2]
[357681578,1744319446592,-239.07320212,0.00026053,2]
[357681579,1744319446628,-61.00679788,0.00026053,2]
[357681580,1744319446637,-304.96,0.00026053,2]
[357681581,1744319446646,-302.06,0.00026053,2]
[357681582,1744319446655,-305.72,0.00026053,2]
[357681583,1744319446664,-209.50030655,0.00026053,2]
[357681607,1744319562792,150.0,0.00043659,30]
[357681609,1744319595559,250.0,0.00019,2]
[357681610,1744319610722,500.0,0.00031911,120]
[357681672,1744320308786,683248.2,0.0002,2]
[357681673,1744320311079,1780.47977112,0.000154,2]
[357681674,1744320330223,1067.0,0.00043659,30]
[357681675,1744320425132,-1842.95247204,0.00019,2]
[357681676,1744320431555,2153.815103,0.00015,2]
[357681677,1744320437145,-10819.50952165,0.00019,2]
[357681678,1744320437166,-179.56396363,0.00019399,2]
[357681679,1744320437187,-250.0,0.00019499,2]
[357681680,1744320437206,-254.00724409,0.000199,3]
[357681681,1744320437226,-672.75137276,0.000199,2]
[357681682,1744320437245,-167.74682816,0.0001991,2]
[357681683,1744320437265,-179.56396362,0.0001991,2]
[357681684,1744320437285,-17.43038449,0.00019998,2]
[357681685,1744320524082,-238.08086642,0.00018,2]
[357681686,1744320524104,-2410.20662463,0.0001991,2]
[357681687,1744320524126,-300.0,0.00019997,2]
[357681688,1744320524148,-26014.56846287,0.00019998,2]
[357681689,1744320524172,-221.01289599,0.00019999,2]
[357681690,1744320524193,-275.13444839,0.00019999,2]
[357681691,1744320524216,-141140.9967017,0.0002,2]
[357681714,1744320632209,-500.0,0.00019973,2]
[357681715,1744320632219,-41.48159556,0.00019999,2]
[357681718,1744320632277,-258.51840444,0.00019999,2]
[357681719,1744320632286,-171.5207938,0.0002,2]
[357681769,1744320637296,1067.0,0.00043659,30]
[357681776,1744320638328,-808.9975848,0.00019872,2]
[357681777,1744320638503,-6323.8890412,0.00019872,2]
[357681778,1744320638513,-15676.54807998,0.0002,2]
[357681779,1744320638561,-1925.70150743,0.0002,2]
[357681780,1744320638632,-103.04484846,0.0002,2]
[357681781,1744320638656,-262.89303466,0.0002,2]
[357681784,1744320639681,1067.0,0.00043659,30]
[357681794,1744320641690,-0.01625205,0.0002,2]
[357681795,1744320641714,-1435.34262958,0.0002,2]
[357681796,1744320641733,-516.8250225,0.0002,2]
[357681797,1744320641761,-2215629.62401276,0.0002,2]
[357681798,1744320641772,-696.18505478,0.0002,2]
[357681799,1744320641791,-12809.68503991,0.0002,2]
[357681814,1744320643648,-919640.46853905,0.0002,2]
[357681815,1744320643659,-582141.23827596,0.0002,2]
[357681816,1744320643670,-260131.55900077,0.0002,2]
[357681817,1744320643766,-193415.47716827,0.0002,2]
[357681825,1744320646417,-4087.587229,0.0002,2]
[357681826,1744320646555,-131.23497046,0.0002,2]
[357681827,1744320646633,-2375.70512588,0.0002,2]
[357681828,1744320670747,7437.62432311,0.00043659,30]
[357681830,1744320800079,1862.3756779,0.00043696,30]
[357681832,1744320964384,150.0,0.00043696,30]
[357681835,1744321256888,2424.19750273,0.0004368,120]
[357681837,1744321278988,368.56953141,0.0004368,30]
[357681840,1744321646161,-184.30749591,0.00019,2]
[357681841,1744321650136,-65.69250409,0.00019,2]
[357681842,1744321650157,-1138.452,0.000196,2]
[357681843,1744321650180,-200.0,0.000196,7]
[357681844,1744321650202,-500.0,0.000197,7]
[357681845,1744321650224,-800.0,0.000198,7]
[357681846,1744321650245,-1457.153555,0.00019872,2]
[357681847,1744321650266,-183.98949228,0.000199,2]
[357681848,1744321650286,-170.56096282,0.000199,2]
[357681849,1744321650306,-574.95780992,0.000199,2]
[357681850,1744321650326,-2169.18596214,0.000199,2]
[357681851,1744321650347,-1000.0,0.000199,7]
[357681852,1744321650367,-150.0,0.00019973,2]
[357681853,1744321650386,-143.58543053,0.00019973,2]
[357681857,1744321831454,-300.0,0.00019999,2]
[357681858,1744321831464,-14080.27485787,0.0002,2]
[357681952,1744321838132,-17825.07728277,0.0002,2]
[357681953,1744321838144,-377.47489294,0.0002,2]
[357681954,1744321839751,-353.21440164,0.000199,2]
[357681955,1744321839761,-409738.41739877,0.0002,2]
[357681956,1744321839771,-1805537.99221235,0.0002,2]
[357681957,1744321839817,-4326.4160007,0.0002,2]
[357681958,1744321839828,-45980.27278552,0.0002,2]
[357681959,1744321839839,-358495.3728605,0.0002,2]
[357681967,1744322455581,-319.2879,0.000199,2]
[357681968,1744322455606,-885.72250066,0.000199,2]
[357681969,1744322469109,-167.51768369,0.0002,23]
[357681970,1744322770232,173.3194,0.000248,34]
[357681971,1744322819795,200.0,0.00025,30]
[357681972,1744322839138,-1863.69511586,0.000199,2]
[357681973,1744322839160,-11005.83190433,0.00019986,2]
[357681974,1744322949330,-300.0,0.00019985,2]
[357681975,1744322949352,-2042.36442906,0.00019986,2]
[357681978,1744323031586,-4755.67306971,0.00019986,2]
[357681979,1744323031596,-3899.1873239,0.00019986,2]
[357681980,1744323031605,-18793.21961506,0.0002,2]
[357681981,1744323031862,-853.09168558,0.0002,2]
[357681989,1744323037657,-1590.42,0.0002,2]
[357681990,1744323037671,-1631.0,0.0002,2]
[357681991,1744323037772,-14417.30045866,0.0002,2]
[357681992,1744323037788,-575.44595638,0.0002,2]
[357681993,1744323037800,-10931.14519315,0.0002,2]
[357681994,1744323037844,-500.0,0.0002,2]
[357681995,1744323037855,-324.28168482,0.0002,2]
[357681996,1744323037903,-2313.95,0.0002,2]
[357681997,1744323037914,-354.60144798,0.0002,2]
[357681998,1744323037926,-1070.70831661,0.0002,2]
[357682018,1744323039954,-872.21531928,0.0002,2]
[357682019,1744323040016,-12935.88809428,0.0002,2]
[357682035,1744323043016,-3982.84999999,0.0002,2]
[357682037,1744323043041,-6566.005669,0.0002,2]
[357682041,1744323093885,174.76983,0.000248,34]
[357682042,1744323130332,2916.0,0.00043656,33]
[357682043,1744323399303,174.76983,0.0002345,31]
[357682044,1744323404787,150.0,0.00043656,30]
[357682045,1744323462867,150.0,0.00043656,120]
[357682046,1744323658951,4400.0,0.00043656,30]
[357682047,1744323905864,10002.31703596,0.00043656,30]
[357682048,1744323910985,9916.16664176,0.000154,2]
[357682050,1744324035144,-1677.08797443,0.00017969,2]
[357682051,1744324037105,-216.24202557,0.00017969,2]
[357682052,1744324037127,-300.0,0.00018999,2]
[357682053,1744324037148,-250.0,0.00019,2]
[357682054,1744324037168,-11807.34270513,0.00019,2]
[357682055,1744324117722,1401.08175529,0.000149,2]
[357682056,1744324122888,338.36878224,0.000154,2]
[357682061,1744324154105,-1257.5458,0.00019,2]
[357682071,1744324231870,-5907.57348856,0.00019,2]
[357682072,1744324231881,-250.0,0.000191,2]
[357682073,1744324231891,-500.0,0.00019205,2]
[357682074,1744324231900,-500.0,0.00019562,2]
[357682075,1744324231911,-250.0,0.00019691,2]
[357682076,1744324231921,-200.0,0.00019839,2]
[357682077,1744324231930,-49.28607316,0.0001984,2]
[357682078,1744324231952,-150.71392684,0.0001984,2]
[357682079,1744324231961,-554.82923316,0.00019886,2]
[357682080,1744324232031,-117.9221396,0.00019886,2]
[357682082,1744324232040,-256.3298604,0.00019899,2]
[357682090,1744324237888,-43.6701396,0.00019899,2]
[357682091,1744324237898,-1677.32560431,0.000199,2]
[357682092,1744324237908,-3834.00425609,0.000199,3]
[357682093,1744324238179,-32.47106407,0.000199,3]
[357682094,1744324238189,-169.52107924,0.000199,2]
[357682095,1744324238198,-174.76983,0.0001993,23]
[357682096,1744324238207,-500.0,0.00019973,2]
[357682097,1744324238216,-3062.31814018,0.00019986,2]
[357682101,1744324243655,-18577.21047132,0.00019986,2]
[357682102,1744324243665,-4739.2268359,0.00019986,2]
[357682103,1744324243674,-115108.1304708,0.00019986,2]
[357682104,1744324243684,-154.70902719,0.00019999,2]
[357682105,1744324243693,-192.59411388,0.00019999,2]
[357682106,1744324243702,-66021.61460573,0.0002,2]
[357682107,1744324243712,-362864.83804504,0.0002,2]
[357682118,1744324376006,20694.38315246,0.00043656,30]
[357682119,1744324514884,-174.76983631,0.0002,23]
[357682120,1744324520957,500.0,0.00043661,30]
[357682121,1744324603033,174.76983,0.0002,23]
[357682122,1744324662389,-2000.0,0.0002,4]
[357682123,1744324754794,150.0,0.00043661,30]
[357682125,1744324895440,1067.0,0.00043657,30]
[357682126,1744324896195,4000.0,0.00043657,30]
[357682127,1744324897756,1067.0,0.00043657,30]
[357682128,1744324900325,1067.0,0.00043657,30]
[357682129,1744324902491,1067.0,0.00043657,30]
[357682130,1744324904823,1067.0,0.00043657,30]
[357682131,1744325225125,-333.5986748,0.00018094,2]
[357682132,1744325233151,-1484.9113252,0.00018094,2]
[357682133,1744325233172,-180.25085872,0.00018805,2]
[357682134,1744325233194,-1457.153555,0.00018905,2]
[357682135,1744325233217,-250.0,0.00018947,2]
[357682136,1744325233239,-250.0,0.00019,2]
[357682137,1744325233259,-166.06,0.00019378,2]
[357682138,1744325233282,-1000.0,0.0001949,2]
[357682139,1744325233304,-2000.0,0.00019571,2]
[357682140,1744325233326,-300.0,0.00019583,2]
[357682141,1744325233346,-1867.2925423,0.00019584,2]
[357682145,1744325431899,-544.02,0.00019444,2]
[357682146,1744325432011,-124.29,0.00019444,2]
[357682147,1744325432020,-250.0,0.00019472,2]
[357682148,1744325432029,-22.1582639,0.000195,7]
[357682149,1744325432041,-277.8417361,0.000195,7]
[357682150,1744325432050,-411.8444199,0.00019584,2]
[357682161,1744325438070,-606.46541544,0.00019584,2]
[357682162,1744325438082,-1013.88322961,0.00019584,2]
[357682163,1744325438094,-20000.51439275,0.00019584,2]
[357682164,1744325438103,-700.0,0.000196,7]
[357682165,1744325438113,-1100.0,0.000197,7]
[357682166,1744325438123,-1400.0,0.000198,7]
[357682167,1744325438132,-200.0,0.0001984,2]
[357682168,1744325438142,-150.0,0.00019863,2]
[357682169,1744325438151,-180.25085871,0.00019886,2]
[357682170,1744325438161,-499.6743,0.000199,2]
[357682171,1744325438170,-165.58712172,0.000199,2]
[357682172,1744325438180,-1509.59304387,0.000199,2]
[357682173,1744325438189,-1800.0,0.000199,7]
[357682174,1744325438198,-336.29191074,0.000199,2]
[357682175,1744325438208,-169.66963404,0.000199,2]
[357682176,1744325438218,-723.63615306,0.000199,2]
[357682177,1744325438227,-500.0,0.00019973,2]
[357682178,1744325438237,-500.0,0.00019973,2]
[357682179,1744325438247,-71406.62036607,0.00019986,2]
[357682180,1744325438310,-19293.34313043,0.00019986,2]
[357682181,1744325438320,-17737.6366435,0.00019986,2]
[357682182,1744325438331,-3734.2948692,0.00019986,2]
[357682183,1744325438340,-300.0,0.00019999,2]
[357682184,1744325438350,-300.0,0.00019999,2]
[357682185,1744325438360,-782.0,0.0002,2]
[357682186,1744325438370,-82520.96621424,0.0002,2]
[357682187,1744325438382,-422.74999925,0.0002,2]
[357682188,1744325438393,-882.33013666,0.0002,2]
[357682189,1744325438405,-1536.52,0.0002,2]
[357682190,1744325438426,-4508.44349464,0.0002,2]
[357682191,1744325438438,-3397.92741516,0.0002,2]
[357682195,1744325441636,-0.01768306,0.0002,2]
[357682196,1744325441724,-887.72623956,0.0002,2]
[357682204,1744325450905,-300.0,0.0002,2]
[357682206,1744326006947,458804.18529252,0.00043661,30]
[357682207,1744326427136,-169.07,0.00016712,2]
[357682208,1744326427157,-1802.8,0.00017802,2]
[357682209,1744326427178,-1182.86,0.00019453,2]
[357682210,1744326427200,-1138.452,0.000196,2]
[357682211,1744326427221,-8185.02272987,0.0001971,2]
[357682212,1744326632166,-334.15,0.00019278,2]
[357682213,1744326632177,-15.85,0.00019453,2]
[357682214,1744326632188,-150.21,0.00019453,2]
[357682215,1744326632197,-8197.09111639,0.0001971,2]
[357682216,1744326632208,-370.04022624,0.0001971,2]